Cogmind - Beta 16 --- EXPLORER MODE // 2026.01.06 @ 10:54:18 Player: K.K.Y. Result: Smashed by cave-in Performance ------------- Evolutions (0) 0 Regions Visited (3) 600 Robots Destroyed (48) 240 Value Destroyed (1008) 1008 Prototype IDs (19) 380 Alien Tech Used (0) 0 Bonus (60) 60 TOTAL SCORE: 2288 Bonus ------- Follower Combat Kills 60 Cogmind --------- Core Integrity 0/250 Matter 88/300 Energy 261/265 System Corruption 1% Temperature Cool (2) Movement Treading (160) Location -10/Subcaves Parts ------- > --- POWER (1) -------- Improved Ion Engine > --- PROPULSION (2) --- Light Treads Light Treads > --- UTILITY (3) ------ Large Storage Unit > --- WEAPON (2) ------- Subdweller Laser Subdweller Machine Gun > --- INVENTORY (15) --- Meta Core Improved Heat Sink Structural Scanner Structural Scanner Sensor Array Improved Terrain Scanner Improved Terrain Scanner Light Armor Plating Makeshift Light Armor Plating Makeshift Light Armor Plating Particle Gun Battle Rifle Battle Rifle Barrage Gun Multitool Peak State ------------ > --- POWER ------------ Improved Ion Engine > --- PROPULSION ------- Light Treads Light Treads > --- UTILITY ---------- Scrap Suit Large Storage Unit > --- WEAPON ----------- Barrage Gun Subdweller Shrapnel Launcher > --- INVENTORY -------- Meta Core Improved Heat Sink Structural Scanner Structural Scanner Sensor Array Improved Terrain Scanner Improved Terrain Scanner Light Armor Plating Makeshift Light Armor Plating Makeshift Light Armor Plating Particle Gun Particle Gun Battle Rifle Battle Rifle Multitool [Rating: 22] Favorites ----------- Power Improved Ion Engine Engine Improved Ion Engine Propulsion Light Treads Treads Light Treads Utility Large Storage Unit Device Scrap Suit Storage Large Storage Unit Processor Targeting Computer Weapon Barrage Gun Energy Gun Medium Laser Energy Cannon Beam Cannon Ballistic Gun Barrage Gun Launcher Subdweller Shrapnel Launcher Special Weapon Mining Laser Build | -11 -10 -10 -10 ------- Run | Yrd Mat Min Sub Slots Evolved 1 | . 1 . . Power . | . . . . Propulsion . | . . . . Utility 1 | . 1 . . Weapon . | . . . . Parts Attached 27 | 4 12 2 9 Power 4 | . 2 1 1 Engine 4 | . 2 1 1 Core . | . . . . Reactor . | . . . . Propulsion 4 | . 4 . . Treads 4 | . 4 . . Leg . | . . . . Wheel . | . . . . Hover . | . . . . Flight . | . . . . Utility 7 | 2 4 1 . Device 3 | . 2 1 . Storage 2 | . 2 . . Processor 2 | 2 . . . Hackware . | . . . . Protection . | . . . . Artifact . | . . . . Weapon 12 | 2 2 . 8 Energy Gun 5 | 1 . . 4 Energy Cannon 1 | . 1 . . Ballistic Gun 3 | . . . 3 Ballistic Cannon . | . . . . Launcher 1 | . . . 1 Special Weapon 2 | 1 1 . . Impact Weapon . | . . . . Slashing Weapon . | . . . . Piercing Weapon . | . . . . Special Melee Weapon . | . . . . Unidentified Prototypes . | . . . . Parts Lost 5 | . 2 . 3 Power 1 | . 1 . . Propulsion 1 | . 1 . . Utility 1 | . . . 1 Weapon 2 | . . . 2 Highest Loss Streak 1 | . 1 . 1 To Critical Strikes 1 | . . . 1 Average Backups 10 | 3 3 7 13 Power . | . . . . Propulsion . | 1 . . . Utility 6 | 1 2 5 8 Weapon 2 | . . 1 3 Tool/Special . | . . . . Unused Backups 12 | . . . 12 Power . | . . . . Propulsion . | . . . . Utility 8 | . . . 8 Weapon 1 | . . . 1 Tool/Special 3 | . . . 3 Average Slot Usage (%) 88 | . 91 90 86 Engine 11 | . 10 12 12 Treads 24 | . 21 25 25 Device 14 | . 23 15 12 Storage 11 | . 11 12 12 Energy Gun 6 | . 11 12 3 Energy Cannon 5 | . . 12 5 Ballistic Gun 8 | . . . 13 Special Weapon 2 | . 9 . . Peak Build Rating 22 | 4 8 15 22 Average Rating 16 | 2 7 13 20 On Entrance 6 | . 4 8 15 Avg Prop Armor Cover (%) . | . . . . Naked Turns . | . . . . Heaviest Build 42 | 3 30 34 42 Greatest Support 40 | 3 40 40 40 Greatest Overweight (x) 6 | . 6 . 1 Average Overweight (x) . | . . . . Largest Inventory Capacity 15 | 5 15 15 15 Average Capacity 14 | 5 12 15 15 Most Carried 15 | 5 6 10 15 Average Carried 10 | 4 3 7 13 Final Capacity 15 | 5 15 15 15 Final Carried 15 | 5 4 9 15 Scrap Suit Usage (%) 46 | . . 14 69 Parts Cannibalized 5 | . . 2 3 Class Distribution -------------------- 74% | Hacker-Scrapper 25% | Hacker-Mutant Dominant Class ---------------- Hacker-Mutant | -10/Materials Hacker-Scrapper | -10/Mines Hacker-Scrapper | -10/Subcaves Resources | -11 -10 -10 -10 ----------- Run | Yrd Mat Min Sub Matter Collected 1109 | 240 227 92 550 Remotely . | . . . . Salvage Created 1341 | 169 299 384 489 Parts 98 | 11 28 16 43 Haulers Intercepted 2 | . 2 . . Recyclers Shooed 1 | . 1 . . Parts Field Recycled . | . . . . Retrieved Matter . | . . . . Parts Self-Destructed . | . . . . Prevented . | . . . . Parts Restored . | . . . . Kills | -11 -10 -10 -10 ------- Run | Yrd Mat Min Sub Combat Hostiles Destroyed 30 | . 9 6 15 Guns 9 | . 4 2 3 Cannons 18 | . 3 4 11 AOE 1 | . . . 1 Classes Destroyed 11 | 2 5 . 4 Builder 1 | . 1 . . Tunneler 7 | 5 1 1 . Hauler 2 | . 2 . . Recycler 2 | 1 . 1 . Turret 2 | . . . 2 Watcher 3 | . 3 . . Swarmer 12 | . 4 2 6 Grunt 10 | . 5 4 1 Sentry 1 | . . . 1 Artisan 2 | . . . 2 Subdweller 8 | . . . 8 Best Kill Streak 6 | 4 3 2 6 Combat Bots Only 4 | . 2 2 4 Max Kills in Single Turn 1 | 1 1 1 1 Gunslinging . | . . . . Exploded 1 | . . . 1 Melee . | . . . . Uniques/NPCs Destroyed . | . . . . Combat | -11 -10 -10 -10 -------- Run | Yrd Mat Min Sub Hostile Shots Fired 210 | . 62 27 121 Missed 66 | . 13 11 42 Hits 144 | . 49 16 79 Projectile 144 | . 49 16 79 AOE 3 | . . . 3 Critical Strikes 4 | . . . 4 Damage Taken 1440 | . 333 118 989 Core 287 | . 69 32 186 Absorbed by Shields . | . . . . Ignored by Resistances 756 | . 219 76 461 Regen/Repaired (Parts) 33 | . . 20 13 Core Remaining (%) 100 | 100 . . . Volleys Fired 331 | 23 80 20 208 Largest 2 | 1 2 2 2 Hottest 160 | 50 150 110 160 Shots Fired 457 | 23 97 40 297 Gun 340 | 23 80 20 217 Cannon 91 | . . 20 71 Launcher 6 | . . . 6 Special 20 | . 17 . 3 Kinetic 202 | . . . 202 Thermal 255 | 23 97 40 95 Explosive . | . . . . Electromagnetic . | . . . . Robot Hit Streak 32 | 12 19 24 32 Robot Miss Streak 4 | 1 4 2 2 Penetration Max . | . . . . Secondary Targets . | . . . . Shots Hit Robots 194 | 20 63 34 77 Core Hits 70 | 7 20 12 31 Critical Kills . | . . . . Critical Parts Destroyed . | . . . . Critical Strikes 11 | 4 7 . . Burn 11 | 4 7 . . Melee Attacks . | . . . . Impact . | . . . . Slashing . | . . . . Piercing . | . . . . Sneak Attacks . | . . . . Combat Hostiles . | . . . . Follow-up Attacks . | . . . . Damage Inflicted 3113 | 247 917 509 1440 Guns 1670 | 247 701 251 471 Cannons 960 | . . 258 702 Explosions 267 | . . . 267 Melee . | . . . . Ramming . | . . . . Kinetic 721 | . . . 721 Thermal 2392 | 247 917 509 719 Explosive . | . . . . Electromagnetic . | . . . . Impact . | . . . . Slashing . | . . . . Piercing . | . . . . Highest Corruption . | . . . . Average Corruption . | . . . . Corruption Purged . | . . . . Corruption Blocked . | . . . . Overload Shots . | . . . . Overflow Damage 21 | . . 16 5 Projectiles 21 | . . 16 5 Explosions . | . . . . Melee . | . . . . Knockbacks . | . . . . Impact . | . . . . Kinetic . | . . . . Secondary . | . . . . Self-Inflicted Damage 23 | . . . 23 Shots 2 | . . . 2 Rammed . | . . . . Targets Rammed . | . . . . Kicked . | . . . . Crushed . | . . . . Highest Temperature 411 | 25 411 276 195 Average Temperature 115 | 25 159 96 15 Received Heat Transfer 820 | . 273 102 445 Effects 10 | . 10 . . Shutdowns 2 | . 2 . . Energy Bleed 2 | . 2 . . Interference 3 | . 3 . . Matter Decay 2 | . 2 . . Damage (minor) 1 | . 1 . . Siege Activations . | . . . . Martial Activations . | . . . . Shielding Activations . | . . . . Robots Disrupted . | . . . . Combat Hostiles . | . . . . Robots Corrupted . | . . . . Combat Hostiles . | . . . . Parts Fried . | . . . . Impact Corruptions . | . . . . Robots Melted 3 | . 3 . . Combat Hostiles 2 | . 2 . . Parts Melted 11 | 2 5 2 2 Heat Transferred 6888 | 1036 3040 1295 1517 Parts Sabotaged . | . . . . Parts Stolen . | . . . . Parts Stripped . | . . . . Power Chain Reactions . | . . . . Alert | -11 -10 -10 -10 ------- Run | Yrd Mat Min Sub Maximum Alert Level . | . . . . Low Security (%) 100 | 100 100 100 . Level 1 . | . . . . Level 2 . | . . . . Level 3 . | . . . . Level 4 . | . . . . Level 5 . | . . . . High Security . | . . . . Max Security . | . . . . Peak Influence 50 | 10 50 50 . Initial 2 | . 2 . . Average 4 | 2 4 4 . Influence Increases 760 | 30 278 165 287 Destroy 0b10 Robot/C 520 | . 180 120 220 Destroy 0b10 Robot/NC 80 | 30 35 15 . Destroy Leader 100 | . 50 30 20 Allied During Kill 2 | . . . 2 Successful Hack 7 | . 7 . . Destroy Structure 6 | . 6 . . Lose Combat Pursuer 45 | . . . 45 Influence Decreases 760 | 25 283 165 287 Entered New Map 3 | . 3 . . Time Decay 747 | 25 270 165 287 Lost Part 10 | . 10 . . Squads Dispatched 1 | . 1 . . Investigation 1 | . 1 . . Extermination . | . . . . Reinforcement . | . . . . Assault . | . . . . Garrison . | . . . . Intercept . | . . . . Searches Triggered . | . . . . Construction Impeded . | . . . . Haulers Reinforced . | . . . . Active Scanning Responses . | . . . . Cargo Convoy Interrupts . | . . . . Stealth | -11 -10 -10 -10 --------- Run | Yrd Mat Min Sub Distress Signals 1 | . 1 . . Communications Jammed . | . . . . Distress Signals . | . . . . Times Spotted 43 | . 15 6 22 Peak Tracking Total 6 | . 4 2 6 Tactical Retreats 2 | . . . 2 Traps | -11 -10 -10 -10 ------- Run | Yrd Mat Min Sub Traps Triggered 8 | . 8 . . Indirectly . | . . . . Trap Hack Attempts . | . . . . Triggered . | . . . . Disarmed . | . . . . Reprogrammed . | . . . . Reused . | . . . . Traps Extracted . | . . . . Installed . | . . . . Triggered . | . . . . Machines | -11 -10 -10 -10 ---------- Run | Yrd Mat Min Sub Machines Disabled 1 | . . . 1 Max in Single Turn 1 | . . . 1 Machines Repaired . | . . . . Machines Dismantled . | . . . . Machines Sabotaged . | . . . . Overloaded Fab Kills . | . . . . Hacking | -11 -10 -10 -10 --------- Run | Yrd Mat Min Sub Machines Accessed 10 | . 8 . 2 Terminals 8 | . 8 . . Fabricators . | . . . . Repair Stations . | . . . . Recycling Units . | . . . . Scanalyzers . | . . . . Garrison Access . | . . . . Total Hacks 31 | . 25 . 6 Successful 27 | . 21 . 6 Failed 4 | . 4 . . Catastrophic . | . . . . Database Lockouts . | . . . . Manual 25 | . 25 . . Terminals 25 | . 25 . . Fabricators . | . . . . Repair Stations . | . . . . Recycling Units . | . . . . Scanalyzers . | . . . . Garrison Access . | . . . . Terminal Hacks 19 | . 13 . 6 Record 5 | . . . 5 Prototype ID Bank 13 | . 13 . . Proto ID Catalog 1 | . . . 1 Fabricator Hacks . | . . . . Repair Station Hacks . | . . . . Recycling Unit Hacks . | . . . . Scanalyzer . | . . . . Garrison Access Hacks . | . . . . Unauthorized Hacks 8 | . 8 . . Terminals 8 | . 8 . . Botnet 8 | . 8 . . Fabricators . | . . . . Repair Stations . | . . . . Recycling Units . | . . . . Scanalyzers . | . . . . Garrison Access . | . . . . Data Cores Recovered . | . . . . Used . | . . . . Hacking Detections 5 | . 5 . . Full Trace Events 1 | . 1 . . Feedback Events . | . . . . Feedback Blocked . | . . . . Robot Schematics Acquired . | . . . . Robots Built . | . . . . Authchips . | . . . . Time . | . . . . Total Robot Build Rating . | . . . . Part Schematics Acquired . | . . . . Parts Built . | . . . . Authchips . | . . . . Time . | . . . . Total Part Build Rating . | . . . . Part Studies Acquired . | . . . . Parts Repaired . | . . . . Time . | . . . . Parts Recycled . | . . . . Recycled Matter . | . . . . Retrieved Matter . | . . . . Retrieved Components . | . . . . Parts Scanalyzed . | . . . . Part Schematics Acquired . | . . . . Parts Damaged . | . . . . Bothacking | -11 -10 -10 -10 ------------ Run | Yrd Mat Min Sub Used RIF Installer . | . . . . Robots Hacked . | . . . . Non-combat . | . . . . Combat . | . . . . Robot Hacks Applied . | . . . . Relay Couplers Released . | . . . . Fabnet Peak Effective % . | . . . . Robots Rewired . | . . . . Allies Hacked . | . . . . Hacks Repelled . | . . . . Allies | -11 -10 -10 -10 -------- Run | Yrd Mat Min Sub Total Allies 3 | . . 3 . Largest Group 3 | . . 3 3 Highest-Rated Group 40 | . . 40 40 Highest-Rated Ally 16 | . . 16 16 Total Orders . | . . . . Ally Attacks 13 | . . . 13 Total Damage 156 | . . . 156 Kills 2 | . . . 2 Allies Corrupted . | . . . . Allies Melted . | . . . . Intel | -11 -10 -10 -10 ------- Run | Yrd Mat Min Sub Active Infowar (turns) 2006 | . 1760 246 . Sensors 1982 | . 1736 246 . Structural 1960 | . 1714 246 . Robot Analysis Total . | . . . . Derelict Logs Recovered 3 | . . 1 2 Drone Launches . | . . . . Drone Recoveries . | . . . . Exploration | -11 -10 -10 -10 ------------- Run | Yrd Mat Min Sub Turns Passed 8643 | 111 1836 1072 5624 Spaces Moved 4734 | 70 1032 610 3022 Core 190 | 70 120 . . Treads 4544 | . 912 610 3022 Legs . | . . . . Wheels . | . . . . Hover . | . . . . Flight . | . . . . Fastest Speed 50 | 50 50 160 160 Average Speed 160 | 50 149 160 167 Slowest Speed 350 | 50 350 160 240 Overloaded Moves . | . . . . Propulsion Burnouts . | . . . . Robots Hopped . | . . . . Potential Cave-ins 22 | . . . 22 Cave-ins Triggered 1 | . . . 1 Exploration Rate (%) 73 | 3 98 97 96 Regions Visited 3 Branch Regions 2 Pre-discovered Areas 2 | . . . 2 Known Exits Taken 3 | 1 1 1 . Unknown Exits Taken . | . . . . Scrap Searched 8 | . . . 8 Spaces Dug 44 | . 5 . 39 Terrain Destroyed 128 | . 6 . 122 Melee . | . . . . Projectile 25 | . 6 . 19 AOE 103 | . . . 103 Terrain Rammed . | . . . . Walls Destroyed . | . . . . Machines Disabled . | . . . . Actions | -11 -10 -10 -10 --------- Run | Yrd Mat Min Sub Total 5279 | 120 1190 667 3302 Wait 115 | 18 36 28 33 Move 4730 | 69 1031 609 3021 Hop . | . . . . Pick Up 43 | 6 18 5 14 Fast Attach 5 | 3 1 . 1 Attach 19 | 1 16 1 1 Detach 3 | . 1 2 . Swap 13 | . 4 1 8 Drop 14 | . 3 1 10 Fire 331 | 23 80 20 208 Melee . | . . . . Ram . | . . . . Kick . | . . . . Crush . | . . . . Escape Stasis . | . . . . Rewire 6 | . . . 6 Trap . | . . . . Miscellaneous . | . . . . Route ------- -11/Scrapyard -10/Materials (discovered 4 exits: *Mat x3 / *Min) -10/Mines (discovered 3 exits: *Mat x2 / *Sub) -10/Subcaves (discovered 4 exits: *Mat x2 / *Rec / [*Scr]) History --------- Turn | Location | Event 8 | -11/Scrapyard | Identified exit to Materials 8 | -11/Scrapyard | Discovered exit to Materials (range 16) 112 | -11/Scrapyard | Entered Materials 112 | -10/Materials | Evolved 1 slot: Utility x1 166 | -10/Materials | Identified exit to Mines 166 | -10/Materials | Discovered exit to Mines (range 8) 178 | -10/Materials | Identified exit to Materials 178 | -10/Materials | Discovered exit to Materials (range 15) 318 | -10/Materials | Build established: Hacker-Mutant 432 | -10/Materials | Discovered exit to Materials (range 8) 1694 | -10/Materials | Discovered exit to Materials (range 7) 1948 | -10/Materials | Entered Mines 2077 | -10/Mines | Found a Scrap Suit stashed away for nefarious purposes 2081 | -10/Mines | Found Scrap Suit 2344 | -10/Mines | Learned 4 Materials zone layouts 2482 | -10/Mines | Build established: Hacker-Scrapper 2518 | -10/Mines | Discovered exit to Materials (range 6) 2581 | -10/Mines | Assisted by bots powering up and referring to "LRC-V3" 2597 | -10/Mines | Discovered exit to Materials (range 10) 3012 | -10/Mines | Identified exit to Subcaves 3012 | -10/Mines | Discovered exit to Subcaves (range 6) 3020 | -10/Mines | Entered Subcaves 3020 | -10/Subcaves | Accompanied by 3 allies 3021 | -10/Subcaves | Approached by a straggling Scientist 3048 | -10/Subcaves | Learned 2 Materials zone layouts 3301 | -10/Subcaves | Scientist uncovered a shortcut to Scraptown 3590 | -10/Subcaves | Core integrity fell below 50% 3626 | -10/Subcaves | A swath of the cavern ceiling suddenly collapsed 3752 | -10/Subcaves | Identified exit to Recycling 3752 | -10/Subcaves | Discovered exit to Recycling (range 15) 3890 | -10/Subcaves | Identified exit to Materials 3890 | -10/Subcaves | Discovered exit to Materials (range 16) 3896 | -10/Subcaves | Ambushed by Subdwellers from Twisted Machinery 3983 | -10/Subcaves | Visited Clippyterm 3987 | -10/Subcaves | Learned location of Section 7 (-3) 3987 | -10/Subcaves | Learned Factory garrison access intel 4088 | -10/Subcaves | Shifting Twisted Machinery released Sub. Machine Gun 4088 | -10/Subcaves | Shifting Twisted Machinery released Barrage Gun 4332 | -10/Subcaves | Discovered exit to Materials (range 11) 4338 | -10/Subcaves | Learned location of Zion (-7) 4338 | -10/Subcaves | Met a Zionite searching for "candidates" 4604 | -10/Subcaves | Learned Materials interactive machine intel 4668 | -10/Subcaves | Visited 4L-MR0's lab 4691 | -10/Subcaves | Found Meta Core 5913 | -10/Subcaves | Ambushed by Subdweller buried in earth 6359 | -10/Subcaves | Ambushed by Subdweller buried in earth 6360 | -10/Subcaves | Core integrity fell below 20% 6372 | -10/Subcaves | Ambushed by angry Subdweller bent on revenge 6491 | -10/Subcaves | A swath of the cavern ceiling suddenly collapsed 8644 | -10/Subcaves | Crushed by falling debris 8644 | -10/Subcaves | Smashed by cave-in Last Messages --------------- 07341_ Acquired Broken Sub. Laser. 07343_ Dropped Broken Sub. Laser. 07459_ Acquired 30 matter. 07552_ Acquired 53 matter. 07618_ Acquired 38 matter. 08010_ Acquired 11 matter. 08037_ Acquired Sub. Machine Gun. 08198_ Acquired 21 matter. 08254_ Dropped Particle Gun. 08255_ Acquired Sub. Laser. 08539_ Dropped Sub. Laser. 08547_ Scrap Suit secures Sub. Laser. 08554_ Searching scrap... 08554_ Found Shrapnel Trap. 08554_ Found 39 Matter. 08555_ Acquired 39 matter. 08644_ The unstable cave ceiling collapses. 08644_ Crushed by falling debris. 08644_ Scrap Suit destroyed. 08644_ System corrupted by crushing effect (+1). Map ----- +----------------------------------------------------+ | ????????????????# # #####????## "" | | ????????????????# # ### #?#### | | ????????????????# ## "# ### ## | | ??????????##????# ### | | ??????????# ##??# ## % ####"" | | ??????????# #### !"" # ###??# " | | ??????????# ## ! ""#####????# " | | ???????????# ## ###### ]= "############" | | ??????????## ## ####?????## ## ## | | ????????### #####?????????## | | ????????# ##?????????????# | | ????????# #####?????????## ### ## # ### | | ????????# ###??###?## ##?## ### ## | | ????????## #??# ### #???#######?# # | | ?????????## ##?# #???????##### | | ??????????# ### #####??## ### | | ??????????# ## ## #?## ### | | ??????????# #### ### ### ##### | | ?????????## #??## ##?# #?# | | ????????## #???# ##??# #?? | | ????????# #???######???#### ### ##?# | | ????????# ##???????????????## ### ##??# | | ????????## #?????????????????#### ## #???# | | ????????# #??????????????###???## ##??## | | ????????## ##???????####### #????# ### ##???# | | ?????????# #??????##[ @ &##????##### ##????# | | ?????????# ##??????# ### #????????# %##?????## | | ????????## ######## #?# ##???????# #???????# | | ????????# ##?####????????######???????? | | ????????## ### ###???????????????????????????? | | ????????# #?######?????????????????????????????? | | ????????## ##????????????????????????????????????? | | ?????????###?????????????????????????????????????? | | ?????????????????????????????????????????????????? | | ?????????????????????????????????????????????????? | | ?????????????????????????????????????????????????? | | ?????????????????????????????????????????????????? | | ?????????????????????????????????????????????????? | | ?????????????????????????????????????????????????? | | ?????????????????????????????????????????????????? | | ?????????????????????????????????????????????????? | | ?????????????????????????????????????????????????? | | ?????????????????????????????????????????????????? | | ?????????????????????????????????????????????????? | | ?????????????????????????????????????????????????? | | ?????????????????????????????????????????????##### | | ?????????????????????????????????????????????# | | ?????????????????????????????????????????????# | | ????????????????????????????????????????????## ## | | ????????????????????????????????????????????# #### | +----------------------------------------------------+ Best States ------------- Heat Dissipation 25 Energy Generation 12 Energy Capacity 265 Matter Stores 300 Matter Capacity 300 Sight Range 16 Robot Scan Range 14 Terrain Scan Density 10 Resistance: KI 35 Resistance: TH 35 Resistance: EX 35 Resistance: EM 35 Resistance: I 35 Resistance: S 35 Resistance: P 35 Evasion (%) 50 Targeting Accuracy 10 Recoil Reduction 2 Offensive Hacking 20 Item Schematics ----------------- None Robot Schematics ------------------ None Fabricated ------------ Nothing Repaired ---------- Nothing Studied --------- None Alien Tech Used ----------------- None Achievements -------------- None Challenges ------------ None Game ------ Seed SniperHugeGuard Manual? 0 Play Time 00:32:47 Cumulative 252.2 hours Start 2026.01.06 @ 10:23:55 End 2026.01.06 @ 10:54:18 Sessions 1 Manual Loads 0 Difficulty Explorer Special Mode None Game No. 396 Rogue 0 Adventurer 0 Explorer 396 Win Type - Total 0 Types 0/0/0/0/0/0/0/0/0/0 Lore% 72 Gallery% 69 Achievement% 54 Wizard Run 0 Options --------- Layout 1 ASCII 0 Keyboard 0 Movement Mouse Keybinds 0 Fullscreen 1 Font 24/Smallcaps Map View 50x35 Zoom Use 0% Tactical HUD 1 Map Filters NONE Filters NONE Steam 1 RUN: 8818317d-12a5-4dcf-b2ca-7cf852300966